bitfinex/quotes_ETHUSD_20251119
["timestamp","ask_amount","ask_price","bid_price","bid_amount"]
[1763544978941,0.5216,3078.7,3078.6,0.4264]
[1763544979330,0.5216,3078.7,3078.6,0.527]
[1763544979864,0.5216,3078.7,3078.6,0.4264]
[1763544980719,0.5216,3078.7,3078.6,0.527]
[1763544984315,0.5216,3078.7,3078.6,0.831904]
[1763544984511,0.5216,3078.7,3078.6,0.932504]
[1763544985327,0.5216,3078.7,3078.6,0.4264]
[1763544985547,0.5216,3078.7,3078.6,0.527]
[1763544985943,0.5216,3078.7,3078.6,0.4264]
[1763544987660,0.5216,3078.7,3078.3,0.3258]
[1763544988760,0.972,3078.7,3078.2,0.3258]
[1763544989056,0.5216,3078.7,3078.2,0.3258]
[1763544989465,0.5216,3078.7,3078.2,0.4264]
[1763544991459,0.5216,3078.7,3078.2,0.3258]
[1763544992760,0.5208,3078.7,3078.2,0.3258]
[1763544993366,0.9712,3078.7,3078.2,0.3258]
[1763544993661,0.4504,3078.6,3078.3,0.3258]
[1763544994032,0.4685,3078.4,3078.3,0.3258]
[1763544994445,0.9189,3078.4,3078.0,0.001]
[1763544995062,0.4685,3078.4,3078.0,0.001]
[1763545000236,0.4913,3078.3,3078.0,0.001]
[1763545000468,0.4964,3078.1,3078.0,0.001]
[1763545001261,0.4913,3078.3,3078.0,0.001]
[1763545002329,0.4964,3078.1,3078.0,0.001]
[1763545002794,0.9877,3078.1,3078.0,0.001]
[1763545003171,0.9877,3078.1,3077.7,0.001]
[1763545003477,0.6778,3077.8,3077.7,0.001]
[1763545003999,1.1691,3077.8,3077.7,0.001]
[1763545005295,0.5208,3078.7,3077.7,0.001]
[1763545005296,0.4913,3078.1,3077.7,0.001]
[1763545005591,0.6727,3078.1,3077.7,0.001]
[1763545005963,0.4964,3077.8,3077.7,0.001]
[1763545006995,0.4913,3078.0,3077.7,0.001]
[1763545007497,0.4964,3077.8,3077.7,0.001]
[1763545007863,0.9877,3077.8,3077.7,0.001]
[1763545008886,0.1814,3078.1,3077.7,0.1026]
[1763545009192,0.4964,3077.8,3077.7,0.001]
[1763545009572,0.9877,3077.8,3077.7,0.001]
[1763545010693,0.1814,3078.1,3077.7,0.001]
[1763545010870,0.6727,3078.1,3077.7,0.001]
[1763545011393,0.4913,3078.0,3077.7,0.001]
[1763545011559,0.1814,3078.1,3077.7,0.001]
[1763545011765,0.4913,3078.5,3077.7,0.001]
[1763545011992,0.4913,3078.5,3077.8,0.90699264]
[1763545012171,0.4913,3078.5,3077.9,0.56683686]
[1763545012373,0.5208,3078.7,3077.9,0.56683686]
[1763545012593,1.0121,3078.7,3077.9,0.56683686]
[1763545012806,0.4913,3078.6,3077.9,0.56683686]
[1763545012965,0.4913,3078.6,3077.7,0.001]
[1763545015272,0.5208,3078.7,3077.8,4.65546102]
[1763545015479,0.4913,3078.6,3077.8,4.65546102]
[1763545016701,0.002,3078.5,3077.7,0.001]
[1763545017090,0.4933,3078.5,3077.7,0.001]
[1763545017886,0.4925,3078.5,3077.8,4.65546102]
[1763545018077,0.4925,3078.5,3078.0,4.65546102]
[1763545018526,0.0012,3078.5,3078.4,0.1016]
[1763545018688,0.0012,3078.5,3078.4,0.507104]
[1763545019025,0.0012,3078.5,3078.4,0.608704]
[1763545019187,0.0012,3078.5,3078.4,1.51569664]
[1763545019388,0.0012,3078.5,3078.4,2.16539241]
[1763545019579,0.0012,3078.5,3078.4,2.49119241]
[1763545019978,0.5208,3078.7,3078.6,0.731304]
[1763545020220,0.5208,3078.7,3078.6,5.48836502]
[1763545020442,0.5208,3078.7,3078.6,6.49695766]
[1763545020732,0.5208,3078.7,3078.6,3.11240735]
[1763545020880,0.5208,3078.7,3078.6,9.04716324]
[1763545021079,0.5208,3078.7,3078.6,9.70624171]
[1763545021287,0.002,3078.9,3078.8,0.731304]
[1763545021487,0.002,3078.9,3078.8,0.832904]
[1763545021699,0.002,3078.9,3078.8,1.90512817]
[1763545022217,0.002,3078.9,3078.8,1.57932817]
[1763545024834,0.002,3079.1,3078.9,0.405504]
[1763545024999,0.002,3079.1,3079.0,0.608704]
[1763545025723,0.4913,3080.9,3079.1,0.405504]
[1763545025884,0.4913,3080.7,3079.5,1.31249664]
[1763545026090,0.4913,3080.7,3079.7,0.405504]
[1763545026538,0.1814,3080.8,3079.8,0.1016]
[1763545026820,0.6727,3080.8,3079.8,0.1016]
[1763545027190,0.4913,3080.7,3079.8,0.1016]
[1763545027391,0.4991,3081.2,3079.9,6.03635589]
[1763545027592,0.6727,3082.0,3079.9,6.03635589]
[1763545027593,0.4991,3081.4,3080.0,2.01773223]
[1763545027998,0.4991,3081.2,3080.1,0.2032]
[1763545028422,0.4991,3081.2,3080.2,0.507104]
[1763545028598,0.4991,3081.1,3080.1,0.1016]
[1763545028804,0.6707,3080.2,3079.8,0.405504]
[1763545029008,0.9871,3080.1,3079.5,0.4991]
[1763545029323,0.9871,3080.1,3079.1,0.1016]
[1763545029324,0.488,3079.6,3079.1,0.1016]
[1763545029502,0.1827,3080.2,3078.8,0.6007]
[1763545029503,0.488,3079.5,3078.8,0.6007]
[1763545029713,0.488,3079.5,3078.2,0.1016]
[1763545029714,0.4991,3079.4,3078.2,0.1016]
[1763545029895,0.4991,3079.4,3078.5,0.1016]
[1763545031526,0.4991,3079.4,3077.9,0.1016]
[1763545031731,0.4991,3079.4,3078.3,0.1016]
[1763545031922,0.4991,3079.4,3078.0,0.1016]
[1763545032988,0.4991,3079.4,3077.8,0.1016]
[1763545034301,0.4991,3079.4,3077.6,0.001]
[1763545035395,0.4991,3079.4,3077.6,0.03349285]
[1763545035595,0.4991,3079.4,3078.5,0.001]
[1763545036229,0.6707,3078.6,3078.5,0.001]
[1763545036598,1.1698,3078.6,3078.5,0.001]
[1763545039212,1.1698,3078.6,3078.1,0.001]
[1763545039508,0.488,3078.2,3078.1,0.001]
[1763545039956,0.9871,3078.2,3078.1,0.001]
[1763545041770,0.488,3078.2,3078.1,0.001]
[1763545041943,0.9871,3078.2,3078.1,0.001]
[1763545042839,0.1827,3078.6,3078.1,0.001]
[1763545043039,0.4991,3078.5,3078.1,0.001]
[1763545044427,0.1827,3078.6,3078.1,0.001]
[1763545045552,0.1996,3078.8,3078.1,0.001]
[1763545047472,0.6893,3078.8,3078.1,0.001]
[1763545049968,0.1996,3079.1,3078.1,0.001]
[1763545050153,0.4897,3078.8,3078.1,0.001]
[1763545050867,0.4693,3078.2,3078.1,0.001]
[1763545051279,0.959,3078.2,3078.1,0.001]
[1763545054744,0.961,3078.2,3078.1,0.001]
[1763545063487,0.002,3078.2,3078.1,0.001]
[1763545064822,0.002,3078.2,3078.1,0.1034]
[1763545066220,0.002,3078.2,3078.1,0.001]
[1763545067019,0.002,3078.2,3078.1,0.1034]
[1763545067222,0.4789,3078.2,3078.1,0.001]
[1763545067423,0.9603,3078.2,3078.1,0.001]
[1763545067633,0.9595,3078.2,3078.1,0.001]
[1763545071860,0.4781,3078.2,3078.1,0.001]
[1763545072396,0.0012,3078.2,3078.1,0.001]
[1763545072604,0.0012,3078.2,3078.1,0.1034]
[1763545073009,0.0012,3078.2,3078.1,0.2058]
[1763545073408,0.0012,3078.2,3078.1,0.1034]
[1763545073793,0.0012,3078.2,3078.1,0.2058]
[1763545086479,0.0012,3078.2,3078.1,0.61348]
[1763545087661,0.0012,3078.2,3078.1,1.018984]
[1763545087894,0.0012,3078.2,3078.1,0.611304]
[1763545088060,0.002,3078.6,3078.4,0.405504]
[1763545088381,0.002,3078.6,3078.5,0.13488335]
[1763545088589,0.002,3078.6,3078.5,0.23728335]
[1763545088880,0.002,3078.6,3078.5,1.28100163]
[1763545089053,0.002,3078.6,3078.5,0.86158678]
[1763545090446,0.002,3078.6,3078.5,1.51326934]
[1763545091058,0.002,3078.9,3078.6,0.405504]
[1763545091380,0.002,3078.9,3078.8,0.507904]
[1763545092576,0.0012,3078.9,3078.8,0.610304]
[1763545095289,0.0012,3078.9,3078.8,0.64278418]
[1763545096767,0.0012,3078.9,3078.8,0.610304]
[1763545102802,0.0012,3078.9,3078.8,0.64278418]
[1763545103667,0.0012,3078.9,3078.8,0.610304]
[1763545103969,0.0012,3078.9,3078.8,0.507904]
[1763545104397,0.0012,3078.9,3078.8,0.610304]
[1763545104769,0.0012,3078.9,3078.8,0.64278418]
[1763545107313,0.0012,3078.9,3078.8,0.64378418]
[1763545107512,0.0012,3078.9,3078.8,0.611304]
[1763545108887,0.0012,3078.9,3078.8,5.38829664]
[1763545109613,0.0012,3078.9,3078.8,5.96296443]
[1763545117423,0.0012,3078.9,3078.8,6.28886443]
[1763545117619,0.0004,3078.9,3078.8,6.32134461]
[1763545118799,0.0004,3078.9,3078.8,11.0761483]
[1763545118992,0.0004,3078.9,3078.8,11.04366812]
[1763545119398,0.002,3079.3,3079.0,0.731404]
[1763545119594,0.002,3079.3,3079.2,6.06730033]
[1763545121032,0.4817,3079.3,3079.2,6.06730033]
[1763545122605,0.002,3079.3,3079.2,6.30457629]
[1763545122810,0.1827,3081.4,3079.6,0.731404]
[1763545123039,0.4876,3080.4,3080.1,4.75480369]
[1763545123239,0.4876,3080.4,3080.1,5.27083446]
[1763545123402,0.4797,3080.2,3080.1,5.67633846]
[1763545124732,0.9673,3080.2,3080.1,0.405504]
[1763545128305,0.1827,3081.4,3080.1,5.16030769]
[1763545128505,0.4797,3080.2,3080.1,5.16030769]
[1763545128920,0.9673,3080.2,3080.1,5.16030769]
[1763545130952,0.9673,3080.2,3080.1,0.405504]
[1763545131121,0.9673,3080.2,3079.2,4.75480369]
[1763545131446,0.4797,3079.9,3079.3,0.49186434]
[1763545131744,0.4797,3079.9,3079.4,0.405504]
[1763545131911,0.4797,3079.5,3079.4,0.405504]
[1763545132950,0.4797,3079.5,3079.2,0.405504]
[1763545134274,0.4797,3079.5,3079.0,0.731404]
[1763545134775,0.4797,3079.5,3079.4,0.405504]
[1763545135845,0.4797,3079.5,3079.0,0.731404]
[1763545136046,0.4797,3079.5,3079.4,0.405504]
[1763545136542,0.4797,3079.5,3079.4,5.58800064]
[1763545136743,0.4797,3079.5,3079.4,6.1468007]
[1763545137385,0.1542,3079.5,3079.4,6.1468007]
[1763545140144,0.6418,3079.5,3079.4,4.83430406]
[1763545140373,0.6418,3079.5,3079.4,4.275504]
[1763545142281,0.6418,3079.5,3079.0,0.90699264]
[1763545142477,0.4797,3079.1,3079.0,0.93947071]
[1763545142773,0.9665,3079.1,3079.0,1.85772371]
[1763545143784,0.4789,3079.1,3079.0,1.85772371]
[1763545145077,0.002,3079.5,3079.1,0.405504]
[1763545145258,0.4896,3079.5,3079.1,0.405504]
[1763545145459,0.4896,3079.5,3079.2,3.87]
[1763545145674,0.4896,3079.5,3079.4,0.405504]
[1763545146090,0.9693,3079.5,3079.4,0.405504]
[1763545146258,0.4817,3079.5,3079.4,0.405504]
[1763545146455,0.002,3079.5,3079.4,0.834204]
[1763545146686,0.002,3079.5,3079.4,1.51951255]
[1763545146986,0.4817,3079.5,3079.4,6.02973134]
[1763545147475,0.002,3079.9,3079.6,0.731404]
[1763545147978,0.4968,3079.7,3079.6,0.731404]
[1763545148182,0.4785,3079.9,3079.6,1.36696713]
[1763545148372,0.002,3079.9,3079.6,1.84826713]
[1763545148751,0.4785,3079.9,3079.6,1.36696713]
[1763545149971,0.4968,3079.7,3079.6,1.36696713]
[1763545150175,0.4785,3079.9,3079.6,1.36696713]
[1763545150375,0.4785,3079.9,3079.8,0.731404]
[1763545150903,0.9753,3079.9,3079.8,0.731404]
[1763545152711,0.002,3079.9,3079.8,6.47169664]
[1763545153003,0.6592,3081.0,3080.0,0.731404]
[1763545153004,0.1827,3081.0,3080.0,0.731404]
[1763545153169,0.4765,3081.2,3080.2,6.66527027]
[1763545153574,0.4765,3081.2,3080.4,0.731404]
[1763545154073,0.4765,3081.2,3080.4,1.213404]
[1763545154407,0.1827,3081.4,3080.3,1.00510184]
[1763545154408,0.4765,3081.1,3080.9,0.731404]
[1763545154771,0.4968,3081.0,3080.9,5.37658575]
[1763545155173,0.9733,3081.0,3080.9,5.37658575]
[1763545155787,0.9733,3081.0,3080.9,5.87338575]
[1763545155991,0.9733,3081.0,3080.9,6.46072432]
[1763545157112,0.9733,3081.0,3080.9,6.13482432]
[1763545157604,0.1827,3081.4,3080.9,6.61612432]
[1763545157807,0.4968,3081.0,3080.9,7.04181696]
[1763545157994,0.9733,3081.0,3080.9,6.54501696]
[1763545158174,0.9733,3081.0,3080.9,7.04181696]
[1763545160502,0.9733,3081.0,3080.9,1.08413857]
[1763545160700,0.9733,3081.0,3080.8,0.90699264]
[1763545161011,0.4765,3080.9,3080.8,2.28831425]
[1763545161212,1.1534,3080.9,3080.8,2.28831425]
[1763545161417,1.1534,3080.9,3080.8,1.88281025]
[1763545161717,1.1534,3080.9,3080.8,0.90699264]
[1763545162087,0.002,3081.0,3080.8,1.5597947]
[1763545162484,0.4968,3080.9,3080.8,1.9652987]
[1763545162692,1.073,3080.9,3080.8,1.9652987]
[1763545162893,0.4968,3080.9,3080.8,2.4620987]
[1763545166218,0.4968,3080.9,3080.8,6.3320987]
[1763545167514,0.1705,3080.9,3080.8,6.3320987]
[1763545167716,0.1705,3080.9,3080.8,6.6579987]
[1763545170149,0.1809,3082.3,3081.0,0.90699264]
[1763545170439,0.6572,3082.3,3082.2,4.64518175]
[1763545170601,0.4763,3082.6,3082.2,4.64518175]
[1763545170790,0.2685,3082.3,3082.2,5.70788575]
[1763545170989,0.4763,3083.5,3082.2,12.30364872]
[1763545171215,0.4763,3083.2,3082.9,5.05068575]
[1763545171401,0.6582,3083.6,3083.0,1.31249664]
[1763545171605,0.6582,3083.6,3083.4,4.64518175]
[1763545172007,0.7409,3083.5,3083.4,4.64518175]
[1763545172827,0.7409,3083.5,3083.2,0.405504]
[1763545173202,0.0047,3083.3,3083.2,0.405504]
[1763545173527,0.0047,3083.3,3083.1,0.6582]
[1763545173726,0.262,3083.2,3083.1,0.6582]
[1763545175026,0.7383,3083.2,3083.1,0.6582]
[1763545175523,0.7383,3083.2,3082.3,0.4963]
[1763545175694,0.0073,3082.7,3082.3,0.405504]
[1763545175897,0.2594,3082.4,3082.1,0.83366646]
[1763545176099,0.0098,3082.3,3081.8,0.1832]
[1763545176332,0.2569,3082.2,3081.8,0.1832]
[1763545176542,0.2569,3082.2,3081.9,0.405504]
[1763545176741,0.2569,3082.2,3081.9,0.881804]
[1763545177042,0.4763,3082.6,3082.2,0.405504]
[1763545177198,0.2667,3082.3,3082.2,0.405504]
[1763545179130,0.4742,3082.6,3082.2,0.883004]
[1763545180430,0.4742,3082.6,3082.1,0.405504]
[1763545180431,0.2687,3082.3,3082.1,0.405504]
[1763545180938,0.2687,3082.3,3081.0,0.001]
[1763545180939,0.0027,3082.2,3081.3,0.477]
[1763545181160,0.2418,3082.0,3081.4,1.05956853]
[1763545181300,0.2418,3082.0,3081.4,1.56016853]
[1763545181501,0.002,3082.3,3081.4,1.56016853]
[1763545181502,0.002,3082.3,3081.9,0.4775]
[1763545181703,0.002,3082.3,3082.1,0.4775]
[1763545182020,0.002,3082.3,3082.0,0.405504]
[1763545182219,0.002,3082.3,3082.2,0.4986]
[1763545182738,0.002,3082.3,3082.2,1.381604]
[1763545182907,0.002,3082.3,3082.2,1.89104835]
[1763545183222,1.0553508,3085.1,3082.6,0.3259]
[1763545183223,0.4986,3083.7,3082.6,0.3259]
[1763545183421,0.1819,3085.1,3082.8,1.78999664]
[1763545183623,0.6787,3084.0,3083.0,0.405504]
[1763545184000,0.6787,3084.0,3083.2,0.405504]
[1763545184741,0.6787,3084.0,3083.1,1.3369]
[1763545184742,0.2346,3083.3,3083.1,0.6787]
[1763545184919,0.0023,3083.2,3083.1,1.084204]
[1763545185322,0.1846,3083.9,3083.1,1.084204]
[1763545185323,0.4986,3083.7,3083.1,1.084204]
[1763545185905,0.2346,3083.2,3083.1,1.084204]
[1763545186149,0.4986,3083.7,3083.1,1.084204]
[1763545186455,0.2346,3083.2,3083.1,1.084204]
[1763545186610,0.2346,3083.2,3083.1,0.6787]
[1763545186811,0.2346,3083.2,3082.0,0.16708441]
[1763545186812,0.7306,3083.2,3082.1,0.3259]
[1763545187109,0.496,3083.2,3082.1,0.1812]
[1763545187311,0.4986,3083.1,3082.1,0.9118]
[1763545187524,0.4986,3083.1,3082.2,0.03244435]
[1763545187740,0.4986,3083.1,3082.2,0.405504]
[1763545188109,0.4986,3083.1,3082.2,0.91494835]
[1763545188306,0.4986,3083.1,3082.4,0.405504]
[1763545189417,0.2346,3082.5,3082.4,0.405504]
[1763545189625,0.2346,3082.5,3082.1,0.9118]
[1763545189626,0.4192,3082.5,3082.1,0.7306]
[1763545189851,0.4192,3082.5,3082.2,0.405504]
[1763545191940,0.4876,3082.3,3082.2,0.405504]
[1763545192163,0.1846,3082.5,3082.2,0.731404]
[1763545192649,0.1838,3082.5,3082.2,0.731404]
[1763545193039,0.406,3082.8,3082.2,0.731404]
[1763545193350,0.0439,3082.7,3082.3,0.7319]
[1763545193550,0.1425,3082.4,3081.9,0.3259]
[1763545193720,0.4986,3082.6,3081.9,0.3259]
[1763545193921,0.0508,3082.0,3081.8,0.406]
[1763545194123,0.4986,3082.6,3080.7,0.1812]
[1763545194323,0.4986,3082.5,3081.2,0.4986]
[1763545194551,0.4986,3082.5,3081.3,0.3259]
[1763545195551,0.4986,3082.5,3081.2,0.3259]
[1763545195762,0.4986,3082.5,3081.3,0.405504]
[1763545198835,0.4986,3082.5,3081.3,4.275504]
[1763545199035,0.4986,3082.5,3081.3,4.276504]
[1763545199263,0.5006,3082.5,3081.3,4.276504]
[1763545200623,0.5006,3082.5,3081.4,0.03245278]
[1763545200856,0.5006,3082.5,3081.5,0.405504]
[1763545201022,0.5006,3082.5,3081.5,0.43795572]
[1763545201224,0.0509,3081.6,3081.3,0.001]
[1763545201443,0.0521,3081.4,3081.3,0.001]
[1763545202127,0.5463,3081.4,3081.3,0.001]
[1763545203629,0.1806,3081.6,3081.3,0.001]
[1763545203959,0.0521,3081.4,3081.3,0.001]
[1763545204137,0.1819,3081.9,3081.3,0.001]
[1763545204342,0.1819,3081.9,3081.4,0.4775]
[1763545204754,0.6805,3081.9,3081.4,0.4775]
[1763545205875,0.1819,3081.9,3081.4,0.9545]
[1763545206376,0.1819,3081.9,3081.4,0.4775]
[1763545206935,0.1819,3081.9,3081.5,0.3259]
[1763545207359,0.4986,3082.4,3081.6,0.477]
[1763545207949,0.4986,3082.4,3081.5,0.405504]
[1763545209175,0.4986,3082.4,3081.4,0.731404]
[1763545209533,0.4986,3082.4,3081.3,0.406504]
[1763545210471,0.4986,3082.4,3081.3,0.001]
[1763545212906,0.0509,3081.4,3081.3,0.001]
[1763545214360,0.5038,3081.4,3081.3,0.001]
[1763545217583,0.503,3081.4,3081.3,0.001]
[1763545218885,0.1819,3081.6,3081.3,0.001]
[1763545219080,0.4926,3081.4,3081.3,0.001]
[1763545219712,0.5486,3081.4,3081.3,0.001]
[1763545221322,0.002,3082.5,3081.3,0.001]
[1763545221323,0.634,3081.9,3081.3,0.001]
[1763545221466,0.634,3081.9,3081.3,0.4999]
[1763545222508,0.1811,3081.9,3081.3,0.001]
[1763545222807,0.4529,3081.8,3081.3,0.001]
[1763545224064,0.0961,3081.4,3081.3,0.001]
[1763545224466,0.5455,3081.4,3081.3,0.001]
[1763545225097,0.1811,3081.9,3081.3,0.001]
[1763545225098,0.4494,3081.8,3081.3,0.001]
[1763545225489,0.0997,3081.4,3081.3,0.001]
[1763545225686,0.4494,3081.8,3081.3,0.001]
[1763545225863,0.1811,3081.9,3081.3,0.4612]
[1763545226092,0.4723,3082.3,3081.3,0.9394]
[1763545226354,0.002,3082.5,3081.4,0.405504]
[1763545226497,0.002,3082.5,3081.5,0.1670804]
[1763545226498,0.4723,3082.4,3081.5,0.1670804]
[1763545226997,0.4723,3082.4,3081.4,0.8041]
[1763545227610,0.4723,3082.4,3081.4,0.3259]
[1763545227794,0.4723,3082.4,3081.5,0.4782]
[1763545228006,0.002,3082.5,3081.4,0.3259]
[1763545228321,0.4743,3082.5,3081.4,0.8041]
[1763545228492,0.4743,3082.5,3081.5,0.4782]
[1763545229331,0.077,3081.6,3081.3,0.3269]
[1763545229754,0.1811,3081.8,3081.3,0.8051]
[1763545230332,0.4684,3082.1,3081.3,0.8051]
[1763545230333,0.4684,3082.1,3081.4,0.4782]
[1763545230626,0.4684,3082.1,3081.3,0.001]
[1763545231633,0.4684,3082.1,3081.3,0.8051]
[1763545232809,0.4684,3082.1,3081.3,0.3269]
[1763545233135,0.261,3081.4,3081.3,0.001]
[1763545233738,0.7265,3081.4,3081.3,0.001]
[1763545234839,0.261,3081.4,3081.3,0.001]
[1763545235011,0.002,3081.9,3081.3,0.001]
[1763545235012,0.6466,3081.7,3081.3,0.001]
[1763545236534,0.0837,3081.4,3081.3,0.001]
[1763545236746,0.5454,3081.4,3081.3,0.001]
[1763545242427,0.5446,3081.4,3081.3,0.001]
[1763545247474,0.0829,3081.4,3081.3,0.001]
[1763545247774,0.002,3081.9,3081.3,0.4576]
[1763545247937,0.002,3081.9,3081.6,0.4566]
[1763545248143,0.002,3081.9,3081.3,0.4787]
[1763545248341,0.1823,3081.9,3081.3,0.4787]
[1763545250441,0.002,3081.9,3081.3,0.4787]
[1763545252188,0.002,3081.9,3081.8,0.4566]
[1763545252390,0.002,3081.9,3081.8,0.9343]
[1763545254698,0.002,3081.9,3081.8,0.4566]
[1763545255095,0.002,3081.9,3081.8,0.9343]
[1763545255700,0.002,3081.9,3081.8,0.4566]
[1763545255891,0.4821,3081.9,3081.3,0.4787]
[1763545256404,0.002,3081.9,3081.3,0.4787]
[1763545258995,0.002,3081.9,3081.3,0.001]
[1763545259295,0.1823,3081.9,3081.3,0.4787]
[1763545260961,0.1823,3081.9,3081.3,0.001]
[1763545261210,0.0564,3081.4,3081.3,0.001]
[1763545261410,0.4887,3081.8,3081.3,0.001]
[1763545261598,0.4887,3081.8,3081.3,0.4576]
[1763545262009,0.4887,3081.8,3081.3,0.001]
[1763545264894,0.0607,3081.4,3081.3,0.001]
[1763545265305,0.5451,3081.4,3081.3,0.001]
[1763545266116,0.0607,3081.4,3081.3,0.001]
[1763545266482,0.5451,3081.4,3081.3,0.001]
[1763545267528,0.5443,3081.4,3081.3,0.001]
[1763545271230,0.5463,3081.4,3081.3,0.001]
[1763545279744,0.0619,3081.4,3081.3,0.001]
[1763545279949,0.0775,3081.4,3081.3,0.001]
[1763545280315,0.002,3081.4,3081.3,0.001]
[1763545280642,0.0775,3081.4,3081.3,0.001]
[1763545280847,0.5465,3081.4,3081.3,0.001]
[1763545289994,7.20451315,3081.4,3081.3,0.001]
[1763545290292,3.71964558,3081.4,3081.3,0.001]
[1763545290606,8.36713634,3081.4,3081.0,0.001]
[1763545290788,0.91169264,3081.1,3081.0,0.001]
[1763545290978,2.48230388,3081.1,3081.0,0.001]
[1763545291315,2.49822239,3081.1,3081.0,0.001]
[1763545291606,2.62841483,3081.1,3081.0,0.001]
[1763545292213,3.50018713,3081.1,3081.0,0.001]
[1763545292408,3.49938713,3081.1,3081.0,0.001]
[1763545295400,2.62761483,3081.1,3081.0,0.001]
[1763545295899,3.49938713,3081.1,3081.0,0.001]
[1763545296475,2.62761483,3081.1,3081.0,0.001]
[1763545296722,1.31249664,3081.0,3080.6,0.001]
[1763545296879,0.1878,3080.7,3080.6,0.001]
[1763545297529,0.6708,3080.7,3080.6,0.001]
[1763545297880,0.89474918,3080.7,3080.6,0.001]
[1763545298311,0.89474918,3080.7,3080.6,0.9531]
[1763545298312,0.92197493,3080.7,3080.6,0.9531]
[1763545298623,0.1825,3081.3,3080.6,0.9531]
[1763545298907,0.1825,3081.3,3080.7,0.4738]
[1763545300088,0.002,3081.4,3081.2,0.4783]
[1763545300689,0.002,3081.4,3080.8,0.4738]
[1763545303412,0.002,3081.4,3081.3,0.4783]
[1763545304013,0.002,3081.4,3080.8,0.1828]
[1763545304014,0.092,3081.4,3080.8,0.1828]
[1763545304384,0.002,3081.4,3081.3,0.4783]
[1763545304590,0.002,3081.8,3081.3,0.4783]
[1763545304823,1.053166,3083.4,3081.8,0.4783]
[1763545305124,0.0499,3082.9,3081.9,0.4783]
[1763545305285,0.5095,3082.9,3081.9,0.9521]
[1763545305815,0.5095,3082.9,3082.0,0.4738]
[1763545307531,0.1845,3083.4,3082.8,0.4783]
[1763545307683,0.22116388,3083.3,3082.8,0.4783]
[1763545308083,0.1845,3083.4,3082.8,0.4783]
[1763545310207,0.5117,3082.9,3082.3,0.4738]
[1763545311232,0.5117,3082.9,3082.0,0.4738]
[1763545311396,0.599,3082.9,3082.0,0.4738]
[1763545312343,0.0873,3082.8,3081.8,0.4738]
[1763545312572,0.0873,3082.8,3081.6,0.4738]
[1763545317435,0.59587731,3082.8,3081.6,0.4738]
[1763545318035,0.50937731,3082.8,3081.6,0.4738]
[1763545319032,0.405504,3082.7,3081.4,0.4738]
[1763545319435,0.405504,3082.5,3081.4,0.4738]
[1763545319958,0.4596,3082.4,3081.2,0.1828]
[1763545320199,0.405504,3082.3,3081.2,0.6566]
[1763545320598,0.4596,3082.2,3081.2,0.6566]
[1763545321535,0.0887,3081.3,3080.9,0.4738]
[1763545321715,0.2686,3081.3,3080.8,0.1828]
[1763545321886,0.2686,3081.3,3080.8,0.6566]
[1763545322885,0.4568,3081.5,3080.8,0.6566]
[1763545322886,0.1801,3081.6,3081.2,0.4783]
[1763545323417,0.1801,3081.6,3080.9,0.4738]
[1763545323418,0.6397,3081.6,3080.9,0.4738]
[1763545323629,0.405504,3082.1,3081.5,0.4783]
[1763545323854,1.44277731,3082.8,3082.0,0.4783]
[1763545323982,1.44277731,3082.8,3080.9,0.4738]
[1763545323983,0.239967,3082.7,3082.1,0.4783]
[1763545324321,0.50937731,3082.8,3082.2,0.1828]
[1763545324516,0.50937731,3082.8,3082.7,0.4783]
[1763545325105,0.4596,3083.3,3082.7,0.4783]
[1763545325295,0.50934727,3083.2,3082.7,0.4783]
[1763545325911,0.002,3082.8,3082.7,0.4783]
[1763545326112,0.0915,3082.8,3082.2,0.1828]
[1763545326282,0.1414,3082.8,3082.2,0.1828]
[1763545327528,0.002,3082.8,3082.7,0.49]
[1763545327894,0.002,3082.8,3082.7,0.943]
[1763545342342,0.0012,3082.8,3082.7,0.943]
[1763545343450,0.0012,3082.8,3082.3,0.4889]
[1763545343633,0.0012,3082.8,3082.7,0.4649]
[1763545344132,0.0012,3082.8,3082.7,0.9538]
[1763545347849,0.5475,3082.8,3082.6,0.001]
[1763545348050,0.0048,3082.7,3082.6,0.001]
[1763545348575,0.4918,3082.7,3082.6,0.001]
[1763545350944,0.0048,3082.7,3082.6,0.001]
[1763545351176,0.4918,3082.7,3082.6,0.001]
[1763545352091,0.0048,3082.7,3082.6,0.001]
[1763545352390,0.0012,3082.8,3082.6,0.001]
[1763545355802,0.0624,3082.7,3082.6,0.001]
[1763545356002,0.5451,3082.7,3082.6,0.001]
[1763545357571,0.0012,3082.8,3082.6,0.001]
[1763545358309,0.0804,3082.7,3082.6,0.001]
[1763545358611,0.5453,3082.7,3082.6,0.001]
[1763545360509,0.0804,3082.7,3082.6,0.001]
[1763545360917,0.5453,3082.7,3082.6,0.001]
[1763545362129,0.0012,3082.8,3082.6,0.9431]
[1763545362329,0.0012,3082.8,3082.7,0.4881]
[1763545362628,0.0012,3082.8,3082.7,0.9421]
[1763545367298,0.0004,3082.8,3082.7,0.9421]
[1763545367627,0.0004,3082.8,3082.7,0.4881]
[1763545369197,0.0004,3082.8,3082.6,0.001]
[1763545370427,0.0004,3082.8,3082.7,0.9421]